[Event "Late-Titled-Tuesday-Blitz-October-17-2023"]
[Site "Chess.com"]
[Date "2023.10.17"]
[Round "7"]
[White "ArtemDyachuk"]
[Black "venturov"]
[Result "0-1"]
[WhiteElo "2672"]
[BlackElo "2476"]
[TimeControl "180+1"]
[EndTime "15:17:06 PDT"]
[Termination "venturov won on time"]

1. e4 {[%clk 0:03:00.9]} 1... Nf6 {[%clk 0:03:00.1]} 2. e5 {[%clk 0:03:00.4]}
2... Nd5 {[%clk 0:03:00.6]} 3. d4 {[%clk 0:03:00.5]} 3... d6 {[%clk 0:03:01.1]}
4. c4 {[%clk 0:03:00.2]} 4... Nb6 {[%clk 0:03:01.5]} 5. f4 {[%clk 0:03:00]} 5...
g6 {[%clk 0:03:01.9]} 6. Nf3 {[%clk 0:02:58.1]} 6... Bg7 {[%clk 0:03:02.4]} 7.
Nc3 {[%clk 0:02:56.9]} 7... O-O {[%clk 0:03:00.1]} 8. Be3 {[%clk 0:02:52.1]}
8... Be6 {[%clk 0:02:58.6]} 9. b3 {[%clk 0:02:48.9]} 9... dxe5 {[%clk
0:02:58.5]} 10. fxe5 {[%clk 0:02:47.8]} 10... c5 {[%clk 0:02:58.9]} 11. d5
{[%clk 0:02:47.6]} 11... Bg4 {[%clk 0:02:59.1]} 12. Qd2 {[%clk 0:02:36.7]} 12...
N6d7 {[%clk 0:02:50.3]} 13. h4 {[%clk 0:02:22.7]} 13... Bxf3 {[%clk 0:02:46.4]}
14. gxf3 {[%clk 0:02:23.6]} 14... Nxe5 {[%clk 0:02:46.6]} 15. Be2 {[%clk
0:02:21.6]} 15... h5 {[%clk 0:02:31.1]} 16. Bxc5 {[%clk 0:02:17.9]} 16... Qa5
{[%clk 0:02:18.7]} 17. Bd4 {[%clk 0:02:15.8]} 17... e6 {[%clk 0:02:09.2]} 18. f4
{[%clk 0:02:09.8]} 18... Ned7 {[%clk 0:02:01.9]} 19. dxe6 {[%clk 0:02:09]} 19...
Nf6 {[%clk 0:01:37.9]} 20. O-O-O {[%clk 0:02:00.8]} 20... Nc6 {[%clk 0:01:24.3]}
21. Bxf6 {[%clk 0:01:50.8]} 21... Bxf6 {[%clk 0:01:23.8]} 22. Nd5 {[%clk
0:01:51.7]} 22... Qa3+ {[%clk 0:01:05.3]} 23. Kb1 {[%clk 0:01:50.8]} 23... Bg7
{[%clk 0:01:03.2]} 24. exf7+ {[%clk 0:01:45.2]} 24... Rxf7 {[%clk 0:01:04.1]}
25. Rhg1 {[%clk 0:01:43.1]} 25... Ne7 {[%clk 0:00:48.2]} 26. Rxg6 {[%clk
0:01:27.2]} 26... Nxd5 {[%clk 0:00:45.9]} 27. cxd5 {[%clk 0:01:28.1]} 27... Rd8
{[%clk 0:00:38.1]} 28. Rdg1 {[%clk 0:01:19.8]} 28... Qc5 {[%clk 0:00:23.2]} 29.
R6g5 {[%clk 0:00:44.8]} 29... Qd6 {[%clk 0:00:14.9]} 30. Qd4 {[%clk 0:00:40.8]}
30... Rdd7 {[%clk 0:00:13.6]} 31. Bxh5 {[%clk 0:00:32.6]} 31... Kf8 {[%clk
0:00:13.1]} 32. Qd2 {[%clk 0:00:24.2]} 32... Rxf4 {[%clk 0:00:13]} 33. Bg4
{[%clk 0:00:18]} 33... Qf6 {[%clk 0:00:12.7]} 34. Qxf4 {[%clk 0:00:10.6]} 34...
Qxf4 {[%clk 0:00:12.2]} 35. Rf5+ {[%clk 0:00:10.8]} 35... Qxf5+ {[%clk 0:00:11]}
36. Bxf5 {[%clk 0:00:11.7]} 36... Rxd5 {[%clk 0:00:11.5]} 37. Bc2 {[%clk
0:00:10.9]} 37... Rd4 {[%clk 0:00:09.6]} 38. h5 {[%clk 0:00:10.4]} 38... Rh4
{[%clk 0:00:10.2]} 39. Rf1+ {[%clk 0:00:08.6]} 39... Ke7 {[%clk 0:00:08]} 40.
Bg6 {[%clk 0:00:08.4]} 40... Bf6 {[%clk 0:00:08.3]} 41. Re1+ {[%clk 0:00:07.3]}
41... Kd6 {[%clk 0:00:07.9]} 42. Kc2 {[%clk 0:00:06.2]} 42... Rh2+ {[%clk
0:00:07.8]} 43. Kd3 {[%clk 0:00:06]} 43... Rxa2 {[%clk 0:00:07]} 44. h6 {[%clk
0:00:04]} 44... Rh2 {[%clk 0:00:07.6]} 45. h7 {[%clk 0:00:04]} 45... Kc5 {[%clk
0:00:06.6]} 46. Rf1 {[%clk 0:00:03.5]} 46... Bb2 {[%clk 0:00:05.9]} 47. Rf7
{[%clk 0:00:02.6]} 47... Kb6 {[%clk 0:00:05.5]} 48. Be4 {[%clk 0:00:02]} 48...
Rh3+ {[%clk 0:00:04.6]} 49. Kc4 {[%clk 0:00:02.1]} 49... Rh4 {[%clk 0:00:04.7]}
50. Rxb7+ {[%clk 0:00:01.5]} 50... Ka6 {[%clk 0:00:05.2]} 51. Re7 {[%clk
0:00:02]} 51... Kb6 {[%clk 0:00:03.3]} 52. Re6+ {[%clk 0:00:02.1]} 52... Kc7
{[%clk 0:00:02.9]} 53. Kb5 {[%clk 0:00:01.5]} 53... Kd7 {[%clk 0:00:02.9]} 54.
Bf5 {[%clk 0:00:01.8]} 54... Rh5 {[%clk 0:00:02.8]} 55. Re5+ {[%clk 0:00:01.9]}
55... Kd6 {[%clk 0:00:02.7]} 56. Re6+ {[%clk 0:00:02.4]} 56... Kd5 {[%clk
0:00:02.5]} 57. Bg4 {[%clk 0:00:02.4]} 57... Rg5 {[%clk 0:00:02]} 58. Re2 {[%clk
0:00:02.8]} 58... Kd4+ {[%clk 0:00:02.3]} 0-1

[Event "Late-Titled-Tuesday-Blitz-October-17-2023"]
[Site "Chess.com"]
[Date "2023.10.17"]
[Round "7"]
[White "FabianoCaruana"]
[Black "Polish_fighter3000"]
[Result "1-0"]
[WhiteElo "3112"]
[BlackElo "3055"]
[TimeControl "180+1"]
[EndTime "15:17:08 PDT"]
[Termination "FabianoCaruana won by resignation"]

1. c4 {[%clk 0:03:00.9]} 1... e6 {[%clk 0:02:59]} 2. Nf3 {[%clk 0:03:01.3]} 2...
Nf6 {[%clk 0:02:58.5]} 3. d4 {[%clk 0:03:01.2]} 3... b6 {[%clk 0:02:57.6]} 4. g3
{[%clk 0:03:00.8]} 4... Ba6 {[%clk 0:02:53.9]} 5. b3 {[%clk 0:03:01.2]} 5...
Bb4+ {[%clk 0:02:53.2]} 6. Bd2 {[%clk 0:03:01.1]} 6... Be7 {[%clk 0:02:53.5]} 7.
Bg2 {[%clk 0:03:01.6]} 7... c6 {[%clk 0:02:54.1]} 8. O-O {[%clk 0:03:01]} 8...
d5 {[%clk 0:02:54.7]} 9. Bc3 {[%clk 0:03:01.1]} 9... O-O {[%clk 0:02:52.6]} 10.
Nbd2 {[%clk 0:03:01]} 10... Nbd7 {[%clk 0:02:53.2]} 11. Qc2 {[%clk 0:02:59.8]}
11... Rc8 {[%clk 0:02:52.1]} 12. e4 {[%clk 0:03:00]} 12... b5 {[%clk 0:02:47.2]}
13. e5 {[%clk 0:02:48.9]} 13... Ne8 {[%clk 0:02:43.7]} 14. c5 {[%clk 0:02:49.3]}
14... b4 {[%clk 0:02:42.2]} 15. Bxb4 {[%clk 0:02:49.7]} 15... Bxf1 {[%clk
0:02:41.8]} 16. Bxf1 {[%clk 0:02:44.5]} 16... g6 {[%clk 0:02:37.4]} 17. Re1
{[%clk 0:02:42.3]} 17... Ng7 {[%clk 0:02:37.4]} 18. h4 {[%clk 0:02:35.8]} 18...
f6 {[%clk 0:02:32.5]} 19. exf6 {[%clk 0:02:31.8]} 19... Bxf6 {[%clk 0:02:33.4]}
20. Bh3 {[%clk 0:02:27.6]} 20... Qe7 {[%clk 0:02:31.5]} 21. Bc3 {[%clk
0:02:24.6]} 21... Rce8 {[%clk 0:02:23.9]} 22. b4 {[%clk 0:02:24.4]} 22... g5
{[%clk 0:02:20.7]} 23. h5 {[%clk 0:02:12.9]} 23... Qf7 {[%clk 0:02:03.6]} 24. h6
{[%clk 0:01:41.9]} 24... Nf5 {[%clk 0:02:03.9]} 25. Rxe6 {[%clk 0:01:37.5]}
25... Rxe6 {[%clk 0:01:43.7]} 26. Bxf5 {[%clk 0:01:36.4]} 26... Re7 {[%clk
0:01:34.8]} 27. a4 {[%clk 0:01:16.3]} 27... g4 {[%clk 0:01:33.8]} 28. Bxg4
{[%clk 0:01:10.6]} 28... Bg5 {[%clk 0:01:34.3]} 29. b5 {[%clk 0:00:55]} 29...
Bxh6 {[%clk 0:01:22.2]} 30. bxc6 {[%clk 0:00:53.7]} 30... Nf6 {[%clk 0:01:22.9]}
31. Qf5 {[%clk 0:00:29.5]} 31... Kh8 {[%clk 0:01:00.7]} 32. Ne5 {[%clk 0:00:27]}
32... Qg8 {[%clk 0:00:58.8]} 33. Bf3 {[%clk 0:00:07.5]} 33... Ne4 {[%clk
0:00:39]} 34. Bxe4 {[%clk 0:00:07.8]} 34... Rxf5 {[%clk 0:00:37.3]} 35. Bxf5
{[%clk 0:00:08.7]} 35... Rg7 {[%clk 0:00:20.7]} 36. Kg2 {[%clk 0:00:07.8]} 36...
Bf4 {[%clk 0:00:20.2]} 37. Nf1 {[%clk 0:00:07.5]} 37... Qf8 {[%clk 0:00:12.7]}
38. Bd7 {[%clk 0:00:07.2]} 38... Qd8 {[%clk 0:00:09.5]} 39. Be6 {[%clk
0:00:02.6]} 39... Qf6 {[%clk 0:00:08.7]} 40. Bd7 {[%clk 0:00:02.6]} 40... Qd8
{[%clk 0:00:08.6]} 41. Kf3 {[%clk 0:00:02.8]} 41... Bxe5 {[%clk 0:00:07.2]} 42.
dxe5 {[%clk 0:00:02.9]} 42... Qf8+ {[%clk 0:00:07.9]} 43. Kg2 {[%clk 0:00:03]}
43... Qxc5 {[%clk 0:00:08.5]} 44. Ba1 {[%clk 0:00:03.3]} 44... d4 {[%clk
0:00:08.9]} 45. e6 {[%clk 0:00:03.7]} 45... Kg8 {[%clk 0:00:07.8]} 46. Nd2
{[%clk 0:00:03.7]} 46... Kf8 {[%clk 0:00:06.4]} 47. Nf3 {[%clk 0:00:04]} 47...
d3 {[%clk 0:00:02.7]} 48. Bd4 {[%clk 0:00:03.1]} 48... Qd6 {[%clk 0:00:02.2]}
49. Be5 {[%clk 0:00:03.5]} 49... Qc5 {[%clk 0:00:02.1]} 50. c7 {[%clk
0:00:04.1]} 50... Rg4 {[%clk 0:00:01.2]} 51. c8=Q+ {[%clk 0:00:03.7]} 51... Qxc8
{[%clk 0:00:01.8]} 52. Bxc8 {[%clk 0:00:04.6]} 52... Ke7 {[%clk 0:00:02.1]} 53.
Bd7 {[%clk 0:00:04.9]} 53... Re4 {[%clk 0:00:02]} 54. Bc3 {[%clk 0:00:05.2]}
54... Rc4 {[%clk 0:00:02.2]} 55. Bd2 {[%clk 0:00:05.7]} 55... h6 {[%clk
0:00:02.1]} 56. a5 {[%clk 0:00:05.6]} 56... Re4 {[%clk 0:00:01.9]} 57. Bxh6
{[%clk 0:00:05.6]} 57... Kd6 {[%clk 0:00:02.5]} 58. Bd2 {[%clk 0:00:06.1]} 58...
Ke7 {[%clk 0:00:02.8]} 59. a6 {[%clk 0:00:05.1]} 59... Rc4 {[%clk 0:00:02.8]}
60. Be3 {[%clk 0:00:05.5]} 60... Rc2 {[%clk 0:00:01.8]} 61. Bxa7 {[%clk
0:00:05.6]} 61... d2 {[%clk 0:00:02.3]} 62. Nxd2 {[%clk 0:00:06]} 62... Rxd2
{[%clk 0:00:03.2]} 63. Be3 {[%clk 0:00:06.2]} 1-0

[Event "Late-Titled-Tuesday-Blitz-October-17-2023"]
[Site "Chess.com"]
[Date "2023.10.17"]
[Round "7"]
[White "ElenGajger"]
[Black "Hambardzumyan_Yuri"]
[Result "0-1"]
[WhiteElo "2360"]
[BlackElo "2489"]
[TimeControl "180+1"]
[EndTime "15:17:10 PDT"]
[Termination "Hambardzumyan_Yuri won by resignation"]

1. e4 {[%clk 0:03:00]} 1... c5 {[%clk 0:02:57.4]} 2. Nc3 {[%clk 0:02:58.5]} 2...
d6 {[%clk 0:02:57]} 3. f4 {[%clk 0:02:58.2]} 3... g6 {[%clk 0:02:55.6]} 4. Nf3
{[%clk 0:02:58.4]} 4... Bg7 {[%clk 0:02:56.2]} 5. Bc4 {[%clk 0:02:58.6]} 5...
Nc6 {[%clk 0:02:56.7]} 6. O-O {[%clk 0:02:58.6]} 6... e6 {[%clk 0:02:56.8]} 7.
d3 {[%clk 0:02:59]} 7... Nge7 {[%clk 0:02:57.2]} 8. Qe1 {[%clk 0:02:59.5]} 8...
O-O {[%clk 0:02:56.7]} 9. f5 {[%clk 0:03:00]} 9... gxf5 {[%clk 0:02:49.9]} 10.
Qh4 {[%clk 0:02:58.1]} 10... Ng6 {[%clk 0:02:49.3]} 11. Qh5 {[%clk 0:02:57.4]}
11... fxe4 {[%clk 0:02:44.6]} 12. dxe4 {[%clk 0:02:53.1]} 12... Nce5 {[%clk
0:02:44.6]} 13. Nxe5 {[%clk 0:02:40]} 13... Nxe5 {[%clk 0:02:23.4]} 14. Be2
{[%clk 0:02:38.5]} 14... Ng6 {[%clk 0:02:21]} 15. Bg5 {[%clk 0:02:33.6]} 15...
f6 {[%clk 0:02:20.7]} 16. Be3 {[%clk 0:02:26.4]} 16... Bd7 {[%clk 0:02:19.5]}
17. Rad1 {[%clk 0:02:25.1]} 17... Bc6 {[%clk 0:02:19.3]} 18. Bxc5 {[%clk
0:02:17.4]} 18... dxc5 {[%clk 0:02:11.3]} 19. Rxd8 {[%clk 0:02:15.2]} 19...
Raxd8 {[%clk 0:02:12.2]} 20. Qxc5 {[%clk 0:02:13.9]} 20... Rfe8 {[%clk
0:02:02.2]} 21. Bc4 {[%clk 0:02:04.5]} 21... f5 {[%clk 0:01:59.3]} 22. Kh1
{[%clk 0:02:02.6]} 22... f4 {[%clk 0:01:55.3]} 23. Qf5 {[%clk 0:01:34.3]} 23...
Bd5 {[%clk 0:01:24.3]} 24. Bxd5 {[%clk 0:01:20.4]} 24... Rxd5 {[%clk 0:01:24.3]}
25. Qg4 {[%clk 0:01:16]} 25... Rd2 {[%clk 0:01:23.7]} 26. h4 {[%clk 0:01:09.5]}
26... Rxc2 {[%clk 0:01:08.8]} 27. h5 {[%clk 0:01:03.1]} 27... Ne5 {[%clk
0:01:09.2]} 28. Qd1 {[%clk 0:00:58.3]} 28... Rxb2 {[%clk 0:01:05.2]} 29. Rxf4
{[%clk 0:00:55.7]} 29... Rc8 {[%clk 0:00:43.2]} 30. Qe1 {[%clk 0:00:41.3]} 30...
Nd3 {[%clk 0:00:35.9]} 31. Qg3 {[%clk 0:00:33.4]} 31... Nxf4 {[%clk 0:00:34.3]}
32. h6 {[%clk 0:00:30.9]} 32... Ng6 {[%clk 0:00:09.5]} 33. hxg7 {[%clk
0:00:29.2]} 33... Rc2 {[%clk 0:00:04.1]} 34. Nb5 {[%clk 0:00:28.9]} 34... Kxg7
{[%clk 0:00:03.4]} 35. Nd6 {[%clk 0:00:27.9]} 35... Rf8 {[%clk 0:00:03.6]} 36.
e5 {[%clk 0:00:22.6]} 36... Rf4 {[%clk 0:00:02.6]} 37. Qe3 {[%clk 0:00:17]}
37... Rxa2 {[%clk 0:00:02.6]} 38. Qc1 {[%clk 0:00:15.5]} 38... Raf2 {[%clk
0:00:02.6]} 39. Qc7+ {[%clk 0:00:15.3]} 39... Kh6 {[%clk 0:00:01.6]} 40. Nf7+
{[%clk 0:00:15.1]} 40... Kh5 {[%clk 0:00:02.2]} 41. Kh2 {[%clk 0:00:13.6]} 41...
Kg4 {[%clk 0:00:02.6]} 42. Nh6+ {[%clk 0:00:13]} 42... Kh5 {[%clk 0:00:02.6]}
43. Nf7 {[%clk 0:00:12.9]} 43... Rh4+ {[%clk 0:00:01.4]} 44. Kg1 {[%clk
0:00:12.8]} 44... Rf5 {[%clk 0:00:02.3]} 45. Qc2 {[%clk 0:00:11.3]} 45... Rhf4
{[%clk 0:00:02.7]} 46. Qe2+ {[%clk 0:00:11.3]} 46... Rg4 {[%clk 0:00:03.5]} 47.
Nd6 {[%clk 0:00:10.7]} 47... Nf4 {[%clk 0:00:03.7]} 48. Qf3 {[%clk 0:00:09.6]}
48... Rg5 {[%clk 0:00:03.6]} 49. Nf7 {[%clk 0:00:08.8]} 49... Rg6 {[%clk
0:00:03.6]} 50. Kf1 {[%clk 0:00:08]} 50... Rg7 {[%clk 0:00:03.1]} 51. Nd6 {[%clk
0:00:08.1]} 51... Kh6 {[%clk 0:00:02.4]} 52. Ne4 {[%clk 0:00:08]} 52... Nh5
{[%clk 0:00:02.3]} 53. Nf6 {[%clk 0:00:07.3]} 53... Rf4 {[%clk 0:00:02]} 54.
Nxh5 {[%clk 0:00:05.8]} 54... Rxf3+ {[%clk 0:00:02]} 55. gxf3 {[%clk 0:00:06.7]}
55... Kxh5 {[%clk 0:00:02.7]} 56. Ke2 {[%clk 0:00:06.9]} 56... Kg5 {[%clk
0:00:03.6]} 57. Ke3 {[%clk 0:00:07.7]} 57... Kf5 {[%clk 0:00:04.5]} 58. f4
{[%clk 0:00:08.4]} 58... Rg4 {[%clk 0:00:04.3]} 59. Kd4 {[%clk 0:00:09.3]} 59...
Rxf4+ {[%clk 0:00:05.2]} 60. Kc5 {[%clk 0:00:09.5]} 60... h5 {[%clk 0:00:06.1]}
61. Kd6 {[%clk 0:00:10.4]} 61... Re4 {[%clk 0:00:06.5]} 0-1

[Event "Late-Titled-Tuesday-Blitz-October-17-2023"]
[Site "Chess.com"]
[Date "2023.10.17"]
[Round "7"]
[White "MKlose11"]
[Black "BogdanDeac"]
[Result "0-1"]
[WhiteElo "2647"]
[BlackElo "2982"]
[TimeControl "180+1"]
[EndTime "15:17:14 PDT"]
[Termination "BogdanDeac won by resignation"]

1. e4 {[%clk 0:02:51.8]} 1... c5 {[%clk 0:03:00.3]} 2. Nc3 {[%clk 0:02:50.8]}
2... e6 {[%clk 0:02:58.1]} 3. g3 {[%clk 0:02:50.9]} 3... d5 {[%clk 0:02:56.2]}
4. Bg2 {[%clk 0:02:51.2]} 4... d4 {[%clk 0:02:55.8]} 5. Nce2 {[%clk 0:02:51.6]}
5... e5 {[%clk 0:02:46.3]} 6. d3 {[%clk 0:02:52.5]} 6... Nc6 {[%clk 0:02:45.6]}
7. f4 {[%clk 0:02:52.5]} 7... Bd6 {[%clk 0:02:42.3]} 8. Nf3 {[%clk 0:02:52.7]}
8... f6 {[%clk 0:02:42.4]} 9. O-O {[%clk 0:02:52.9]} 9... Nge7 {[%clk
0:02:42.1]} 10. fxe5 {[%clk 0:02:53.2]} 10... Bxe5 {[%clk 0:02:40.5]} 11. Nxe5
{[%clk 0:02:43.9]} 11... Nxe5 {[%clk 0:02:31.7]} 12. Nf4 {[%clk 0:02:40.4]}
12... O-O {[%clk 0:02:26.9]} 13. Bh3 {[%clk 0:02:39.3]} 13... Bxh3 {[%clk
0:02:22.7]} 14. Nxh3 {[%clk 0:02:40.2]} 14... c4 {[%clk 0:02:21.7]} 15. Bf4
{[%clk 0:02:27.4]} 15... Qd7 {[%clk 0:02:14.7]} 16. Bxe5 {[%clk 0:02:22]} 16...
fxe5 {[%clk 0:02:14.6]} 17. Kg2 {[%clk 0:02:22.6]} 17... Qb5 {[%clk 0:02:00.4]}
18. b3 {[%clk 0:02:08.4]} 18... Rxf1 {[%clk 0:01:56.8]} 19. Qxf1 {[%clk
0:02:03.8]} 19... cxd3 {[%clk 0:01:49.7]} 20. cxd3 {[%clk 0:02:00.6]} 20... Rc8
{[%clk 0:01:49.4]} 21. Rc1 {[%clk 0:01:53.4]} 21... Rxc1 {[%clk 0:01:41]} 22.
Qxc1 {[%clk 0:01:54.3]} 22... Qxd3 {[%clk 0:01:39.6]} 23. Qc7 {[%clk 0:01:42.7]}
23... Qxe4+ {[%clk 0:01:21.8]} 24. Kg1 {[%clk 0:01:41.9]} 24... Qb1+ {[%clk
0:00:55]} 25. Kg2 {[%clk 0:01:39.7]} 25... Qxa2+ {[%clk 0:00:55.1]} 26. Kg1
{[%clk 0:01:40.2]} 26... Qb1+ {[%clk 0:00:31.1]} 27. Kg2 {[%clk 0:01:39.5]}
27... Qe4+ {[%clk 0:00:30.8]} 28. Kg1 {[%clk 0:01:39.8]} 28... Qe3+ {[%clk
0:00:20.6]} 29. Kg2 {[%clk 0:01:39.2]} 29... Kf7 {[%clk 0:00:20.5]} 30. Qc4+
{[%clk 0:01:30.9]} 30... Kf6 {[%clk 0:00:16.8]} 31. Nf2 {[%clk 0:01:24.4]} 31...
h5 {[%clk 0:00:16.1]} 32. Qc7 {[%clk 0:01:15]} 32... Qe2 {[%clk 0:00:08.5]} 33.
Qd6+ {[%clk 0:01:10]} 33... Kf7 {[%clk 0:00:07.8]} 34. Kg1 {[%clk 0:01:10.6]}
34... a6 {[%clk 0:00:05.2]} 35. b4 {[%clk 0:01:07.3]} 35... Qe1+ {[%clk
0:00:04.5]} 36. Kg2 {[%clk 0:01:07.4]} 36... Qe2 {[%clk 0:00:04.9]} 37. Kg1
{[%clk 0:01:07.6]} 37... g6 {[%clk 0:00:04.7]} 38. Nh3 {[%clk 0:01:01.8]} 38...
Qe1+ {[%clk 0:00:04.2]} 39. Kg2 {[%clk 0:01:02.1]} 39... Qe2+ {[%clk 0:00:04.7]}
40. Kg1 {[%clk 0:01:02.6]} 40... Qe3+ {[%clk 0:00:05.1]} 41. Kg2 {[%clk
0:01:03.2]} 41... d3 {[%clk 0:00:04.7]} 42. Nf2 {[%clk 0:00:59.3]} 42... d2
{[%clk 0:00:05]} 43. h4 {[%clk 0:00:59.6]} 43... Qd4 {[%clk 0:00:04.5]} 44. Qb8
{[%clk 0:00:44.7]} 44... d1=Q {[%clk 0:00:04.3]} 45. Nxd1 {[%clk 0:00:45.3]}
45... Qxd1 {[%clk 0:00:05]} 46. Qh8 {[%clk 0:00:45.7]} 46... Qd5+ {[%clk
0:00:05.1]} 47. Kh2 {[%clk 0:00:45.9]} 47... Ke6 {[%clk 0:00:04.8]} 48. Qb8
{[%clk 0:00:44.4]} 48... Kd7 {[%clk 0:00:04.7]} 49. Qh8 {[%clk 0:00:41.4]} 49...
Qd2+ {[%clk 0:00:04.3]} 50. Kh3 {[%clk 0:00:41.1]} 50... Qd6 {[%clk 0:00:04.9]}
51. Qa8 {[%clk 0:00:40.8]} 51... Kc7 {[%clk 0:00:04.9]} 52. Kh2 {[%clk
0:00:41.4]} 52... Qd8 {[%clk 0:00:04.4]} 53. Qa7 {[%clk 0:00:16.1]} 53... Qd2+
{[%clk 0:00:04.5]} 54. Kh3 {[%clk 0:00:16]} 54... Qd4 {[%clk 0:00:05.1]} 55. Qa8
{[%clk 0:00:15.7]} 55... Nc8 {[%clk 0:00:05.8]} 56. b5 {[%clk 0:00:14.4]} 56...
Qa7 {[%clk 0:00:06]} 57. b6+ {[%clk 0:00:13.7]} 57... Qxb6 {[%clk 0:00:06.3]}
58. g4 {[%clk 0:00:13.3]} 58... Qa7 {[%clk 0:00:06]} 59. gxh5 {[%clk 0:00:11]}
59... gxh5 {[%clk 0:00:06]} 60. Kg3 {[%clk 0:00:10]} 60... Qxa8 {[%clk 0:00:06]}
61. Kf3 {[%clk 0:00:10.7]} 61... Kd6 {[%clk 0:00:06.4]} 62. Ke4 {[%clk
0:00:11.1]} 62... Ke6 {[%clk 0:00:07.3]} 63. Ke3 {[%clk 0:00:11.1]} 63... Qa7+
{[%clk 0:00:08.2]} 64. Kd3 {[%clk 0:00:11.9]} 64... Qc5 {[%clk 0:00:08.8]} 65.
Ke2 {[%clk 0:00:12.8]} 65... a5 {[%clk 0:00:09.2]} 66. Kd2 {[%clk 0:00:13.7]}
66... a4 {[%clk 0:00:10.1]} 67. Kd1 {[%clk 0:00:14.4]} 67... b5 {[%clk 0:00:11]}
68. Kd2 {[%clk 0:00:15.1]} 68... Nd6 {[%clk 0:00:11.4]} 69. Ke2 {[%clk 0:00:16]}
69... Kf5 {[%clk 0:00:12.3]} 70. Kd1 {[%clk 0:00:16.7]} 70... Kg4 {[%clk
0:00:13.2]} 71. Kd2 {[%clk 0:00:17.4]} 71... Kxh4 {[%clk 0:00:14]} 0-1

[Event "Late-Titled-Tuesday-Blitz-October-17-2023"]
[Site "Chess.com"]
[Date "2023.10.17"]
[Round "7"]
[White "Bauman_Guy"]
[Black "AryanTari"]
[Result "1-0"]
[WhiteElo "2886"]
[BlackElo "2945"]
[TimeControl "180+1"]
[EndTime "15:17:35 PDT"]
[Termination "Bauman_Guy won by resignation"]

1. e4 {[%clk 0:03:00.9]} 1... c6 {[%clk 0:03:00.1]} 2. d4 {[%clk 0:03:00.5]}
2... d5 {[%clk 0:03:01]} 3. e5 {[%clk 0:03:01.2]} 3... Bf5 {[%clk 0:03:01]} 4.
h4 {[%clk 0:03:01.9]} 4... a6 {[%clk 0:03:01.3]} 5. Be3 {[%clk 0:02:57.2]} 5...
c5 {[%clk 0:02:41.6]} 6. dxc5 {[%clk 0:02:56.2]} 6... Nc6 {[%clk 0:02:41.7]} 7.
f4 {[%clk 0:02:50.7]} 7... d4 {[%clk 0:02:37.8]} 8. Bf2 {[%clk 0:02:50.3]} 8...
e6 {[%clk 0:02:34.3]} 9. Nd2 {[%clk 0:02:49.2]} 9... Nh6 {[%clk 0:02:28.9]} 10.
a3 {[%clk 0:02:39]} 10... Ng4 {[%clk 0:02:27.1]} 11. Bd3 {[%clk 0:02:38.4]}
11... Bxc5 {[%clk 0:02:22.2]} 12. Ngf3 {[%clk 0:02:36.1]} 12... O-O {[%clk
0:02:11.1]} 13. Ne4 {[%clk 0:02:36]} 13... Be7 {[%clk 0:01:24]} 14. h5 {[%clk
0:02:29]} 14... h6 {[%clk 0:01:24]} 15. O-O {[%clk 0:02:26.5]} 15... Qd5 {[%clk
0:01:15.7]} 16. Qe2 {[%clk 0:02:25.7]} 16... Rad8 {[%clk 0:01:15.2]} 17. Rfe1
{[%clk 0:02:22.6]} 17... b5 {[%clk 0:01:14.5]} 18. Nh2 {[%clk 0:02:05.9]} 18...
Ne3 {[%clk 0:01:09.5]} 19. Qf3 {[%clk 0:01:59.8]} 19... Na5 {[%clk 0:00:52.5]}
20. g4 {[%clk 0:01:59]} 20... Bh7 {[%clk 0:00:51.5]} 21. Nf1 {[%clk 0:01:57.5]}
21... Nac4 {[%clk 0:00:49.8]} 22. Rab1 {[%clk 0:01:53.9]} 22... Nxc2 {[%clk
0:00:46.6]} 23. Bxc2 {[%clk 0:01:49.8]} 23... d3 {[%clk 0:00:47.5]} 24. Bb3
{[%clk 0:01:46.8]} 24... d2 {[%clk 0:00:45.8]} 25. Nexd2 {[%clk 0:01:38.9]}
25... Qxf3 {[%clk 0:00:27.2]} 26. Nxf3 {[%clk 0:01:38]} 26... Bxb1 {[%clk
0:00:27.4]} 27. Rxb1 {[%clk 0:01:37.9]} 27... Rd3 {[%clk 0:00:27.5]} 28. Bd1
{[%clk 0:01:37.6]} 28... Re8 {[%clk 0:00:26.8]} 29. Be2 {[%clk 0:01:36.9]} 29...
Rb3 {[%clk 0:00:26.3]} 30. Bxc4 {[%clk 0:01:28.7]} 30... bxc4 {[%clk 0:00:25.8]}
31. N3d2 {[%clk 0:01:25.3]} 31... Rd3 {[%clk 0:00:15.2]} 32. Nxc4 {[%clk
0:01:25.1]} 32... Rb8 {[%clk 0:00:13.9]} 33. Re1 {[%clk 0:01:16]} 33... a5
{[%clk 0:00:12.1]} 34. Re4 {[%clk 0:01:13.2]} 34... a4 {[%clk 0:00:11.8]} 35. f5
{[%clk 0:01:09.5]} 35... Bg5 {[%clk 0:00:11.4]} 36. Be3 {[%clk 0:01:02.4]} 36...
Rd1 {[%clk 0:00:08.2]} 37. Kg2 {[%clk 0:00:53.3]} 37... Rc8 {[%clk 0:00:06]} 38.
Bxg5 {[%clk 0:00:52.2]} 38... hxg5 {[%clk 0:00:06.9]} 39. Nfe3 {[%clk
0:00:52.8]} 39... Rc1 {[%clk 0:00:07.2]} 40. Kf3 {[%clk 0:00:47.5]} 40... Rd8
{[%clk 0:00:07.4]} 41. Nd6 {[%clk 0:00:45.3]} 41... Rb8 {[%clk 0:00:07.5]} 42.
Nec4 {[%clk 0:00:45.3]} 42... Rb3+ {[%clk 0:00:07.4]} 43. Kg2 {[%clk 0:00:42.9]}
43... Rc2+ {[%clk 0:00:06.5]} 44. Kg1 {[%clk 0:00:37.9]} 44... Rd3 {[%clk
0:00:06.6]} 45. Kf1 {[%clk 0:00:33.1]} 45... Rf3+ {[%clk 0:00:06.4]} 46. Ke1
{[%clk 0:00:32.1]} 46... Rh3 {[%clk 0:00:06.7]} 47. Kd1 {[%clk 0:00:31.6]} 47...
Rg2 {[%clk 0:00:07]} 48. Nd2 {[%clk 0:00:23.8]} 48... Rd3 {[%clk 0:00:04.1]} 49.
Nc4 {[%clk 0:00:22.4]} 49... Rh3 {[%clk 0:00:04.3]} 50. fxe6 {[%clk 0:00:21.8]}
50... fxe6 {[%clk 0:00:04.6]} 51. Rd4 {[%clk 0:00:18.6]} 51... Kh7 {[%clk
0:00:04.7]} 52. Nd6 {[%clk 0:00:16.9]} 52... Rhg3 {[%clk 0:00:03.6]} 53. Rxa4
{[%clk 0:00:14.2]} 53... Re3 {[%clk 0:00:01.2]} 54. N6e4 {[%clk 0:00:11]} 54...
Rd3 {[%clk 0:00:01.3]} 55. Nxg5+ {[%clk 0:00:07.9]} 55... Kh6 {[%clk 0:00:01.5]}
56. Nf3 {[%clk 0:00:06.7]} 56... Rg3 {[%clk 0:00:01.2]} 57. Ke2 {[%clk
0:00:06.6]} 57... Rd8 {[%clk 0:00:01.3]} 58. Rf4 {[%clk 0:00:07.1]} 58... Rg2+
{[%clk 0:00:01.8]} 59. Ke3 {[%clk 0:00:07.3]} 59... Rg3 {[%clk 0:00:01.7]} 60.
b4 {[%clk 0:00:06.9]} 60... Rc8 {[%clk 0:00:01.7]} 61. Rc4 {[%clk 0:00:06.4]}
61... Rf8 {[%clk 0:00:01.5]} 62. Rc6 {[%clk 0:00:06]} 62... Rxg4 {[%clk
0:00:01.7]} 63. Rxe6+ {[%clk 0:00:05.9]} 63... Kxh5 {[%clk 0:00:02.4]} 64. b5
{[%clk 0:00:06.5]} 64... g5 {[%clk 0:00:02.5]} 65. Ne4 {[%clk 0:00:06.2]} 65...
Rgf4 {[%clk 0:00:01.8]} 66. Nfxg5 {[%clk 0:00:06.7]} 66... Kg4 {[%clk 0:00:02]}
67. Nh7 {[%clk 0:00:06.5]} 67... Kf5 {[%clk 0:00:02.3]} 68. Nxf8 {[%clk
0:00:06.1]} 68... Rxe4+ {[%clk 0:00:02.8]} 69. Kd3 {[%clk 0:00:06.8]} 69... Ra4
{[%clk 0:00:03.4]} 70. Re8 {[%clk 0:00:05.9]} 70... Rxa3+ {[%clk 0:00:02.8]} 71.
Kc4 {[%clk 0:00:06.6]} 71... Ra1 {[%clk 0:00:03.3]} 72. Kc5 {[%clk 0:00:07.2]}
72... Rc1+ {[%clk 0:00:03.6]} 73. Kb6 {[%clk 0:00:07.9]} 73... Rc8 {[%clk
0:00:03.3]} 74. Rxc8 {[%clk 0:00:07.6]} 1-0